[Event "II Duchamp Open 2018"]
[Site "Rio de Janeiro"]
[Date "2018.11.20"]
[Round "9"]
[White "Torella, Rodolfo"]
[Black "Chang, Suzana"]
[Result "1-0"]
[ECO "B49"]
[WhiteElo "2036"]
[BlackElo "1968"]
[Annotator "NA RC"]
[PlyCount "89"]
[EventDate "2018.11.14"]
[EventType "swiss"]
[EventCountry "BRA"]
[SourceTitle "playchess.com"]
[Source "ChessBase"]
[SourceQuality "1"]
[TimeControl "5400+30"]

{[%evp 12,89,40,37,18,26,20,0,32767,10,9,38,21,22,26,23,28,32767,8,0,33,12,32767,0,0,-3,-8,-58,-35,-44,-45,-51,-36,-101,-38,-40,-28,-57,-65,-74,0,-53,0,0,0,0,32767,0,0,0,0,0,-8,-54,-69,-67,-70,-74,32767,32767,32767,-120,32767,-183,-198,32767,32767,32767,32767,32767,-318,-241,-311,-564,32767,32767,32767,32767,537,581]} 1. e4 {[%emt 0:00:00]} c5 {[%emt 0:00:00]} 2. Nf3 {[%emt 0:00:00]} e6 {[%emt 0:00:00]} 3. d4 {[%emt 0:00:00]} cxd4 {[%emt 0:00:00]} 4. Nxd4 {[%emt 0:00:05]} Nc6 {[%emt 0:00:06]} 5. Nc3 {[%emt 0:00:49]} Qc7 {[%emt 0:00:28]} 6. Be3 {[%emt 0:03:49]} a6 {[%emt 0:00:29]} 7. Be2 {[%emt 0:03:26]} Nf6 {[%emt 0:00:31]} 8. O-O {[%emt 0:07:21]} Be7 {[%emt 0:00:38]} 9. Kh1 {[%emt 0:01:03]} O-O {[%emt 0:00:14]} 10. f4 {[%emt 0:01:27]} d6 {[%emt 0:00:12]} 11. Qe1 {[%emt 0:11:09]} Nxd4 {[%emt 0:01:21]} 12. Bxd4 {[%emt 0:01:29]} b5 {[%emt 0:01:03]} 13. Qg3 {[%emt 0:08:19]} Bb7 {[%emt 0:04:35]} 14. a3 {[%emt 0:06:41]} Rad8 {[%emt 0:00:50]} 15. Rae1 {[%emt 0:01:40] B85: Sicilian Scheveningen: 6 Be2 a6, lines with early Be3} Rd7 {[%emt 0:00:51]} (15... Qd7 16. Bd3 Nh5 17. Qg4 Nf6 18. Qg3 Nh5 19. Qg4 Nf6 20. Qg3 Nh5 21. Qg4 Nf6 22. Qg3 {½-½ (24) Andreikin,D (2712)-Grischuk,A (2772) Huaian 2017}) 16. Bd3 {[%emt 0:03:02]} Re8 {[%emt 0:09:43]} 17. Qh3 {[%emt 0:06:22]} e5 {[%emt 0:03:43]} 18. fxe5 {[%emt 0:05:56]} dxe5 {[%emt 0:00:15]} 19. Nd5 {[%emt 0:08:17]} Bxd5 {[%emt 0:05:25] LiveBook: 4 Games} 20. exd5 {[%emt 0:00:13]} Rxd5 {[%emt 0:01:50]} 21. Rxf6 {[%emt 0:06:07]} Bxf6 {[%emt 0:01:40]} 22. Qxh7+ {[%emt 0:00:15]} Kf8 {[%emt 0:00:10]} 23. Bc3 $146 {[%emt 0:00:31]} a5 {[%emt 0:02:57]} 24. Be4 $5 {[%emt 0:04:15]} Rd6 {[%emt 0:07:40]} (24... Rdd8 25. Qh8+ Ke7 26. Qh5 $15) 25. Bd3 {[%emt 0:01:58]} Rd5 {[%emt 0:01:35]} ({Black should try} 25... Qb6 $15) 26. Rf1 {[%emt 0:01:36]} Ke7 {[%emt 0:16:48]} 27. Qe4 {[%emt 0:00:37]} Red8 {[%emt 0:07:36]} 28. Qe1 {[%emt 0:00:43]} Rxd3 {[%emt 0:11:00]} 29. cxd3 {[%emt 0:01:01]} Rxd3 {[%emt 0:00:28]} 30. Bxa5 {[%emt 0:00:17]} Qc4 {[%emt 0:01:00]} 31. Bb4+ {[%emt 0:02:32]} Ke8 {[%emt 0:05:05]} 32. Rf2 {[%emt 0:00:47]} Qd5 {[%emt 0:00:40]} 33. Rf1 {[%emt 0:02:24]} e4 {[%emt 0:02:07]} 34. Qe2 {[%emt 0:01:42]} Be7 {[%emt 0:05:13]} 35. Bc3 {[%emt 0:01:14]} g6 {[%emt 0:00:10]} 36. Rc1 {[%emt 0:06:25]} (36. Qg4 $15) 36... f5 {[%emt 0:01:17]} 37. h3 {[%emt 0:01:02]} Bg5 {[%emt 0:04:46]} 38. Rb1 {[%emt 0:01:41]} Bd8 {[%emt 0:01:13]} 39. Be1 {[%emt 0:01:39]} Bc7 {[%emt 0:02:23]} 40. Bf2 {[%emt 0:00:14]} Rd2 {[%emt 0:00:48]} 41. Qe3 {[%emt 0:01:07]} f4 {[%emt 0:01:14]} 42. Qc3 $2 {[%emt 0:01:02]} (42. Qc5 {keeps fighting.} Qxc5 43. Bxc5) 42... Rd1+ {[%emt 0:01:35]} 43. Rxd1 {[%emt 0:00:15]} Qxd1+ {[%emt 0:00:01]} 44. Kh2 {[%emt 0:00:15]} f3+ $18 {[%emt 0:00:52]} (44... Qd6 $15 45. Kg1 Kf7 46. Qb3+ Kg7) 45. Qxc7 1-0

[Event "II Duchamp Open 2018"]
[Site "Rio de Janeiro"]
[Date "2018.11.20"]
[Round "9"]
[White "Nascimento, Pedro Henrique Alve"]
[Black "Manzi, Luiz Antonio Bardar"]
[Result "1/2-1/2"]
[ECO "D35"]
[WhiteElo "2007"]
[BlackElo "2047"]
[Annotator "NA RC"]
[PlyCount "100"]
[EventDate "2018.11.14"]
[EventType "swiss"]
[EventCountry "BRA"]
[SourceTitle "playchess.com"]
[Source "ChessBase"]
[SourceQuality "1"]
[TimeControl "5400+30"]

{[%evp 12,100,24,7,32767,32767,13,26,27,32767,32767,-28,-39,32767,-23,-49,0,0,-4,32767,32767,0,0,-11,-26,-102,-57,32767,32767,-89,-98,32767,32767,-120,-91,-93,-61,-74,32767,32767,32767,-8,-4,-9,0,0,0,-6,0,0,32767,32767,32767,32767,32767,0,0,0,0,0,0,0,0,-8,0,0,0,0,0,0,16,32767,32767,0,32767,32767,32767,0,32767,32767,32767,32767,32767,8,0,0,0,0,0,0,0]} 1. d4 {[%emt 0:00:00]} Nf6 {[%emt 0:00:51]} 2. c4 {[%emt 0:00:00]} e6 {[%emt 0:00:02]} 3. Nc3 {[%emt 0:00:00]} d5 {[%emt 0:00:18]} 4. cxd5 {[%emt 0:00:07]} exd5 {[%emt 0:00:06]} 5. Bg5 {[%emt 0:00:11]} Be7 {[%emt 0:00:07]} 6. e3 {[%emt 0:00:07]} O-O {[%emt 0:01:51]} 7. Bd3 {[%emt 0:00:08]} c6 {[%emt 0:02:07]} 8. Qc2 {[%emt 0:00:10]} h6 {[%emt 0:00:38] LiveBook: 134 Games} 9. Bh4 {[%emt 0:00:09]} a5 {[%emt 0:02:10]} 10. a4 {[%emt 0:02:34] D36: Queen's Gambit Declined: Exchange Variation: Main line (5 Bg5 c6 6 Qc2)} (10. Nge2 Na6 11. a3 Re8 12. O-O Be6 13. f3 Qd7 14. Bf2 Red8 15. Rad1 b5 16. Kh1 Rdb8 17. e4 b4 {½-½ (31) Guseynov,A (2341)-Tarlabasi,E (2117) Cesme 2018}) 10... Na6 {[%emt 0:00:13]} 11. Bxa6 $146 {[%emt 0:01:19]} ({Predecessor:} 11. Qd2 Nb4 12. Bb1 b6 13. Nf3 Ba6 14. Qd1 Nd7 15. Bg3 Rc8 16. Ne5 Nxe5 17. Bxe5 Bd6 18. Bxd6 Qxd6 {½-½ (56) Malin,O (1736)-Rolvag,B (1951) Tromsoe 2012}) 11... Rxa6 {[%emt 0:00:17]} 12. Nge2 {[%emt 0:01:16]} Bg4 {[%emt 0:12:14]} 13. O-O {[%emt 0:04:11]} Ne4 {[%emt 0:05:55]} ({Better is} 13... g5 $15 14. Bg3 Nd7) 14. Bxe7 {[%emt 0:02:53]} Qxe7 {[%emt 0:00:09]} 15. Nxe4 {[%emt 0:02:05]} Bxe2 {[%emt 0:00:08]} 16. Qxe2 {[%emt 0:04:26]} Qxe4 {[%emt 0:00:07]} 17. f3 {[%emt 0:00:29]} Qe7 {[%emt 0:00:19]} 18. e4 {[%emt 0:00:43]} (18. Ra3 $11) 18... Re8 {[%emt 0:00:53]} (18... Rb6 $17 19. e5 Qb4) 19. Rfe1 {[%emt 0:01:54]} Qb4 {[%emt 0:00:21]} 20. Qf2 {[%emt 0:00:52]} dxe4 {[%emt 0:01:49]} 21. fxe4 {[%emt 0:00:45]} Rb6 {[%emt 0:00:17]} 22. Re2 {[%emt 0:00:54]} Rd8 {[%emt 0:04:24]} 23. Rd2 {[%emt 0:01:55] [#]} c5 $1 {[%emt 0:01:53]} 24. d5 {[%emt 0:02:53]} Qxe4 {[%emt 0:01:44]} 25. Qxc5 {[%emt 0:00:24]} Rbd6 {[%emt 0:00:13]} 26. Qxa5 {[%emt 0:01:58]} Qe3+ {[%emt 0:00:36]} 27. Kh1 {[%emt 0:01:00]} Qb3 {[%emt 0:02:02]} 28. h3 {[%emt 0:08:31]} b6 {[%emt 0:00:04]} 29. Qc3 {[%emt 0:02:52]} Qxc3 {[%emt 0:00:10]} 30. bxc3 {[%emt 0:00:05]} Rxd5 {[%emt 0:00:17]} 31. Rxd5 {[%emt 0:00:08]} Rxd5 {[%emt 0:00:15]} 32. Rb1 {[%emt 0:00:10]} Rc5 {[%emt 0:00:16]} 33. Rxb6 {[%emt 0:00:18]} Rxc3 {[%emt 0:00:07]} 34. Rb8+ {[%emt 0:01:31]} Kh7 {[%emt 0:00:07]} 35. a5 {[%emt 0:04:16]} Ra3 {[%emt 0:00:07]} 36. Ra8 {[%emt 0:00:22]} g5 {[%emt 0:03:10]} 37. Kg1 {[%emt 0:01:14]} Ra2 {[%emt 0:00:11]} 38. g4 {[%emt 0:01:26]} Kg7 {[%emt 0:01:42]} 39. a6 {[%emt 0:00:16]} Kh7 {[%emt 0:01:04]} 40. a7 {[%emt 0:00:35]} Kg7 {[%emt 0:00:08]} 41. Kf1 {[%emt 0:00:58]} Kf6 {[%emt 0:02:06]} 42. Ke1 {[%emt 0:00:25]} Ra1+ {[%emt 0:00:32]} 43. Kd2 {[%emt 0:00:14]} Ra2+ {[%emt 0:00:07]} 44. Kc3 {[%emt 0:00:44]} Ra3+ {[%emt 0:00:07]} 45. Kb4 {[%emt 0:00:46]} Ra1 {[%emt 0:00:07]} 46. Kb5 {[%emt 0:00:14]} Rb1+ {[%emt 0:00:07]} 47. Kc4 {[%emt 0:02:08]} Rc1+ {[%emt 0:00:06]} 48. Kb3 {[%emt 0:00:17]} Ra1 {[%emt 0:00:16]} 49. Kb2 {[%emt 0:00:11]} Ra6 {[%emt 0:00:07]} 50. Kb3 $11 {[%emt 0:00:39]} Ra1 {[%emt 0:00:11]} 1/2-1/2

[Event "II Duchamp Open 2018"]
[Site "Rio de Janeiro"]
[Date "2018.11.20"]
[Round "9"]
[White "Peixoto, Rudson Marinho"]
[Black "Moccero, Eduardo"]
[Result "1-0"]
[ECO "B01"]
[WhiteElo "2007"]
[BlackElo "1945"]
[Annotator "NA RC"]
[PlyCount "101"]
[EventDate "2018.11.14"]
[EventType "swiss"]
[EventCountry "BRA"]
[SourceTitle "playchess.com"]
[Source "ChessBase"]
[SourceQuality "1"]
[TimeControl "5400+30"]

{[%evp 13,83,12,29,16,32767,32767,8,22,32767,5,24,31,36,28,31,35,72,55,96,72,97,73,102,83,88,50,61,49,65,58,32767,32767,68,44,58,56,32767,47,32767,32767,32767,41,55,47,50,66,32767,32767,116,113,126,115,112,108,117,61,453,462,1470,2204,1690,720,1683,1634,1631,833,802,817,895,830,929,1064]} 1. e4 {[%emt 0:04:03]} d5 {[%emt 0:00:00]} 2. exd5 {[%emt 0:00:11]} Qxd5 {[%emt 0:00:00]} 3. Nc3 {[%emt 0:00:08]} Qa5 {[%emt 0:00:00]} 4. Nf3 {[%emt 0:00:26]} Nf6 {[%emt 0:00:00]} 5. Be2 {[%emt 0:00:22]} Bf5 {[%emt 0:01:00]} 6. O-O {[%emt 0:00:16]} e6 {[%emt 0:00:54] B01: Scandinavian Defence} 7. a3 {[%emt 0:00:24]} c6 {[%emt 0:00:52]} 8. d3 {[%emt 0:00:10]} Nbd7 {[%emt 0:01:29]} 9. Bf4 {[%emt 0:00:22]} Be7 {[%emt 0:02:28]} 10. b4 {[%emt 0:00:13]} Qd8 {[%emt 0:01:08]} 11. Nh4 {[%emt 0:00:41]} Bg6 {[%emt 0:00:34]} 12. Nxg6 {[%emt 0:00:33]} hxg6 {[%emt 0:00:09]} 13. h3 $146 {[%emt 0:00:09]} ({Predecessor:} 13. Ne4 Nxe4 14. dxe4 {1-0 (49) Portilla Garcia,W-Valencia Lotero,J (1925) Columbia 2009}) 13... Nh5 {[%emt 0:02:56]} 14. Bh2 {[%emt 0:00:12]} Nb6 {[%emt 0:02:52]} 15. Ne4 {[%emt 0:00:18]} Nd5 {[%emt 0:06:30]} 16. Qd2 {[%emt 0:00:36]} Nhf6 {[%emt 0:01:15]} 17. c4 {[%emt 0:01:01]} Nxe4 {[%emt 0:01:34]} 18. dxe4 {[%emt 0:00:21]} Nf6 {[%emt 0:00:26]} 19. Qc2 {[%emt 0:00:10]} O-O {[%emt 0:03:01]} 20. Rad1 {[%emt 0:00:10]} Qc8 {[%emt 0:00:27]} 21. Rfe1 {[%emt 0:00:46]} c5 {[%emt 0:03:16]} 22. b5 {[%emt 0:00:26]} Rd8 {[%emt 0:01:52]} 23. Bf3 {[%emt 0:00:19]} Rxd1 {[%emt 0:03:36]} 24. Rxd1 {[%emt 0:00:13]} a6 {[%emt 0:02:29]} 25. a4 {[%emt 0:01:20]} axb5 {[%emt 0:00:52]} 26. axb5 {[%emt 0:00:11]} Nd7 {[%emt 0:01:17]} 27. e5 {[%emt 0:01:33]} Nb6 {[%emt 0:04:40]} 28. Bg3 {[%emt 0:00:59]} Ra4 {[%emt 0:01:08]} 29. Be2 {[%emt 0:00:47]} Qa8 {[%emt 0:01:14]} 30. Qe4 {[%emt 0:00:32]} Ra1 {[%emt 0:09:35] [#]} (30... g5 $14) 31. Rxa1 $1 {[%emt 0:00:33]} Qxa1+ {[%emt 0:00:05]} 32. Kh2 {[%emt 0:00:07]} Qa8 {[%emt 0:01:01]} 33. h4 {[%emt 0:00:21]} Qc8 {[%emt 0:03:36]} 34. h5 {[%emt 0:00:46]} (34. f4 $16) 34... g5 $2 {[%emt 0:00:55]} ({Better is} 34... gxh5 $14 35. Bxh5 Qd7) 35. Bd3 {[%emt 0:00:24]} f5 {[%emt 0:02:51]} (35... g6 $142 36. hxg6 Qf8 37. Qxb7 Bd8) 36. exf6 $1 {[%emt 0:00:14]} Bxf6 {[%emt 0:00:08]} 37. Qh7+ {[%emt 0:00:49]} (37. Bd6 $142 Bb2 38. Qh7+ Kf7 39. h6 Qd7 40. Qg6+ {[%mdl 64] Double Attack} Kg8 41. Kg1 Bd4 42. Qh7+ Kf7 43. hxg7) 37... Kf8 {[%emt 0:00:16]} 38. h6 {[%emt 0:02:34]} e5 {[%emt 0:01:27]} 39. Qg6 {[%emt 0:00:27]} Ke7 {[%emt 0:01:22]} 40. hxg7 {[%emt 0:00:34]} Qg8 {[%emt 0:00:30]} 41. Qe4 {[%emt 0:00:43]} Qxg7 {[%emt 0:00:51]} 42. Qxb7+ $18 {[%emt 0:00:31]} Nd7 {[%emt 0:00:05]} 43. Bf5 {[%emt 0:00:26]} Qh8+ {[%emt 0:01:11]} 44. Kg1 {[%emt 0:00:16]} Qd8 {[%emt 0:00:31]} 45. f3 {[%emt 0:01:54]} Ke8 {[%emt 0:01:47]} 46. Qc6 {[%emt 0:00:23]} Qe7 {[%emt 0:02:24]} 47. Bf2 {[%emt 0:00:24]} e4 {[%emt 0:02:05]} 48. Qxd7+ {[%emt 0:00:35]} Qxd7 {[%emt 0:00:07]} 49. Bxd7+ {[%emt 0:00:08]} Kxd7 {[%emt 0:00:05]} 50. Bxc5 {[%emt 0:00:08]} exf3 {[%emt 0:00:16]} 51. gxf3 {[%emt 0:00:10]} 1-0

[Event "II Duchamp Open 2018"]
[Site "Rio de Janeiro"]
[Date "2018.11.20"]
[Round "9"]
[White "Rodrigues, Nei Jorge"]
[Black "Ramos, Angelo Bil"]
[Result "1/2-1/2"]
[ECO "D78"]
[WhiteElo "1978"]
[BlackElo "1952"]
[Annotator "NA RC"]
[PlyCount "89"]
[EventDate "2018.11.14"]
[EventType "swiss"]
[EventCountry "BRA"]
[SourceTitle "playchess.com"]
[Source "ChessBase"]
[SourceQuality "1"]
[TimeControl "5400+30"]

{[%evp 13,76,-23,-12,32767,-37,-90,32767,-117,-105,-105,-45,-134,-65,-112,32767,32767,-100,-97,32767,-4,-7,-14,-10,-10,-12,-28,-20,32767,32767,-38,0,0,-26,-104,-80,-106,-35,-43,0,-82,-87,-148,-159,-161,-183,-152,-160,-161,-60,-53,-70,-114,-90,32767,-37,32767,32767,32767,32767,-91,-69,-123,-151,-114,-47]} 1. d4 {[%emt 0:00:00]} Nf6 {[%emt 0:00:00]} 2. Nf3 {[%emt 0:00:04]} g6 {[%emt 0:01:15]} 3. g3 {[%emt 0:00:41]} d5 {[%emt 0:00:12]} 4. Bg2 {[%emt 0:00:09]} Bg7 {[%emt 0:00:07]} 5. O-O {[%emt 0:00:05]} O-O {[%emt 0:00:07]} 6. c4 {[%emt 0:00:02]} c6 {[%emt 0:00:09]} 7. Nc3 {[%emt 0:00:53] LiveBook: 159 Games} dxc4 {[%emt 0:00:29]} 8. a4 {[%emt 0:00:29]} Na6 {[%emt 0:10:03]} 9. Ne5 {[%emt 0:06:10] D78: Fianchetto Grünfeld: 6 0-0 c6} (9. a5 Bf5 10. Ra4 Nd5 11. Nh4 Be6 12. Ne4 Ndc7 13. Nf3 Nb5 14. Neg5 Bf5 15. Rxc4 h6 16. Nh3 Be4 {1-0 (42) Cordova,E (2616)-Barrientos Chavarriaga,S (2476) Bogota 2014}) 9... Ng4 {[%emt 0:04:48]} 10. Nf3 {[%emt 0:03:12]} e5 {[%emt 0:06:20]} 11. d5 {[%emt 0:04:13] [#]} cxd5 {[%emt 0:01:07]} ({Better is} 11... e4 $1 $17 {[%mdl 512]} 12. Nxe4 cxd5) 12. Nxd5 {[%emt 0:00:24] [#]} ({Better is} 12. Qxd5 Qxd5 13. Nxd5) 12... Nc7 $146 {[%emt 0:06:01]} (12... e4 $1 $17 {[%cal Re4f3]} 13. Ng5 {[#]} e3 $1 {[%mdl 512]}) ({Predecessor:} 12... Be6 13. Ng5 Nc5 14. h3 Nh6 15. Nxe6 Nxe6 16. Bxh6 Bxh6 {1-0 (35) Dongo,W-Meier,P (2039) Tromsoe 2014}) 13. e4 {[%emt 0:03:19]} (13. Ng5 $15) 13... Nxd5 {[%emt 0:01:05]} 14. exd5 {[%emt 0:00:02]} Bf5 {[%emt 0:04:21]} 15. h3 {[%emt 0:01:12]} Nh6 {[%emt 0:00:15]} 16. Bxh6 {[%emt 0:06:14]} Bxh6 {[%emt 0:00:13]} 17. Nxe5 {[%emt 0:00:07]} Rc8 {[%emt 0:15:01]} 18. a5 {[%emt 0:20:33]} Qd6 {[%emt 0:02:27]} 19. f4 {[%emt 0:01:52]} f6 {[%emt 0:00:43]} 20. Ng4 {[%emt 0:01:00]} Bg7 {[%emt 0:00:48]} 21. Nf2 {[%emt 0:05:37]} Bd7 {[%emt 0:03:04]} 22. Ne4 {[%emt 0:07:24]} Qb4 {[%emt 0:00:52]} 23. Qc1 {[%emt 0:01:31]} (23. d6 $11) 23... f5 {[%emt 0:02:07]} 24. Nc3 {[%emt 0:00:06]} a6 {[%emt 0:03:59]} (24... Rc5 $17 25. a6 b5) 25. Qd2 {[%emt 0:03:55]} Rc5 {[%emt 0:02:02]} 26. Rfe1 {[%emt 0:00:51]} (26. d6 $11 {remains equal.}) 26... Rxa5 {[%emt 0:00:21]} 27. Rad1 {[%emt 0:01:00]} Qd6 {[%emt 0:02:34]} 28. Kh2 {[%emt 0:01:23]} Rc5 {[%emt 0:00:45]} 29. Ne2 {[%emt 0:04:47]} Rcc8 {[%emt 0:01:58]} 30. Nd4 {[%emt 0:00:30]} Bxd4 {[%emt 0:00:55]} ({Black should play} 30... Rfe8 $17 31. Re3 Rxe3 32. Qxe3 a5) 31. Qxd4 {[%emt 0:00:13]} b5 {[%emt 0:00:21]} 32. Qe5 {[%emt 0:06:39]} ({White should play} 32. Ra1 $15) 32... Rf6 {[%emt 0:02:43]} 33. Qd4 {[%emt 0:02:28]} Re8 {[%emt 0:01:05]} (33... a5 $17 34. Kh1 b4) 34. Re5 {[%emt 0:00:15]} Rff8 {[%emt 0:00:21]} 35. Rde1 {[%emt 0:01:05]} a5 {[%emt 0:02:03]} 36. R1e3 {[%emt 0:02:16]} a4 {[%emt 0:01:36]} 37. Bf3 {[%emt 0:01:23] [#]} Rc8 $1 {[%emt 0:04:10]} 38. Be2 {[%emt 0:03:21]} Rfe8 $15 {[%emt 0:00:49]} (38... Qc5 $17 39. Qd2 Rfe8) 39. h4 {[%emt 0:04:01]} Rcd8 {[%emt 0:01:38]} 40. Kh3 {[%emt 0:01:38]} h6 {[%emt 0:03:54]} 41. Kh2 {[%emt 0:01:19]} Rf8 {[%emt 0:03:22]} 42. Bf3 {[%emt 0:00:31]} Rde8 {[%emt 0:01:38]} 43. Kh3 {[%emt 0:02:32]} h5 {[%emt 0:03:40]} 44. Kh2 {[%emt 0:00:08]} Bc8 {[%emt 0:03:20]} 45. R5e4 1/2-1/2

[Event "II Duchamp Open 2018"]
[Site "Rio de Janeiro"]
[Date "2018.11.20"]
[Round "9"]
[White "Chaves, Jorge Antonio Torre"]
[Black "Maia, Jose Eduardo Bastos"]
[Result "1/2-1/2"]
[ECO "E06"]
[WhiteElo "1922"]
[BlackElo "2093"]
[Annotator "NA RC"]
[PlyCount "130"]
[EventDate "2018.11.14"]
[EventType "swiss"]
[EventCountry "BRA"]
[SourceTitle "playchess.com"]
[Source "ChessBase"]
[SourceQuality "1"]
[TimeControl "5400+30"]

{[%evp 9,129,11,22,29,21,7,25,14,11,7,10,-19,-15,-68,-76,-81,-19,-54,-7,32767,0,-24,6,-3,5,-4,7,-2,-8,-9,0,-9,0,0,-8,-10,26,16,30,24,84,80,32767,32767,32767,32767,32767,32767,32767,32767,32767,32767,32767,32767,32767,32767,32767,32767,32767,32767,12,-9,-10,32767,32767,32767,32767,32767,32767,32767,32767,32767,32767,32767,32767,32767,32767,-188,-184,-403,-451,-420,-470,-526,-456,-547,-277,-284,-281,-334,-233,32767,32767,32767,32767,32767,32767,32767,32767,32767,32767,32767,32767,32767,32767,0,0,0,0,0,0,0,0,0,0,0,0,0,0,0,0,0]} 1. Nf3 {[%emt 0:00:00]} d5 {[%emt 0:01:50]} 2. c4 {[%emt 0:00:14]} e6 {[%emt 0:00:14]} 3. d4 {[%emt 0:02:21]} Nf6 {[%emt 0:00:14]} 4. g3 {[%emt 0:01:12]} Be7 {[%emt 0:00:44]} 5. Bg2 {[%emt 0:00:32]} O-O {[%emt 0:00:07]} 6. O-O {[%emt 0:07:40]} c6 {[%emt 0:01:28]} 7. Qc2 {[%emt 0:03:41]} b6 {[%emt 0:00:49]} 8. Rd1 {[%emt 0:02:37]} Nbd7 {[%emt 0:00:17]} 9. Bf4 {[%emt 0:07:18]} Bb7 {[%emt 0:06:11] LiveBook: 682 Games E08: Closed Catalan: Main Line: 7 Qc2} 10. h4 $146 {[%emt 0:08:23]} ({Predecessor:} 10. Ne5 Rc8 11. Nc3 Nh5 12. Bc1 Nhf6 13. e4 Bb4 14. Bg5 Qc7 15. Nxd7 Nxd7 16. a3 Bxc3 17. Qxc3 dxc4 18. Bf4 Qd8 19. Bd6 {0-1 (76) Dominguez Perez,L (2739)-Caruana,F (2822) Saint Louis 2018}) 10... Rc8 {[%emt 0:02:18]} 11. Nbd2 {[%emt 0:04:43]} c5 {[%emt 0:05:16]} 12. dxc5 {[%emt 0:13:07]} Nxc5 {[%emt 0:08:32]} 13. b3 {[%emt 0:17:37]} Qe8 {[%emt 0:03:10]} (13... b5 $5) 14. Be5 {[%emt 0:04:04]} h6 {[%emt 0:06:18]} ({Black should play} 14... Ng4 $17) 15. Qb2 {[%emt 0:00:55]} b5 {[%emt 0:15:05]} 16. cxd5 {[%emt 0:01:37]} Bxd5 {[%emt 0:00:54]} 17. Bd4 {[%emt 0:00:37]} Qc6 {[%emt 0:03:13]} 18. Ne5 {[%emt 0:01:57]} Qb7 {[%emt 0:00:15]} 19. Bxd5 {[%emt 0:01:41]} Qxd5 {[%emt 0:01:44]} 20. Ndf3 {[%emt 0:02:51]} Rfd8 {[%emt 0:02:58]} 21. Rac1 {[%emt 0:02:50]} Qb7 {[%emt 0:01:45]} 22. Rc2 {[%emt 0:06:26]} Nce4 {[%emt 0:13:49]} 23. Rdc1 {[%emt 0:00:44]} Rxc2 {[%emt 0:11:08]} 24. Qxc2 {[%emt 0:02:23]} Ba3 {[%emt 0:03:07]} (24... Nd6 $11) 25. Qc7 {[%emt 0:03:28]} Qxc7 {[%emt 0:02:17]} 26. Rxc7 {[%emt 0:00:02]} Bd6 {[%emt 0:00:31]} 27. Rxa7 {[%emt 0:00:47]} Bxe5 {[%emt 0:01:12]} 28. Bxe5 {[%emt 0:00:02]} Rd1+ {[%emt 0:00:39]} 29. Kg2 {[%emt 0:00:14]} Ng4 {[%emt 0:00:52]} 30. Bd4 {[%emt 0:00:33]} e5 {[%emt 0:00:17]} 31. Be3 {[%emt 0:01:32]} Nc3 {[%emt 0:00:25]} 32. Ng1 {[%emt 0:01:07]} Nxe3+ {[%emt 0:00:24]} 33. fxe3 {[%emt 0:00:07]} Rd2 {[%emt 0:00:14]} 34. a4 {[%emt 0:01:20]} Rb2 {[%emt 0:02:22]} 35. axb5 {[%emt 0:00:44]} Rxb3 {[%emt 0:00:16]} 36. Nf3 {[%emt 0:00:59]} Rxb5 {[%emt 0:00:05]} 37. Ra8+ {[%emt 0:00:46]} Kh7 {[%emt 0:00:03]} 38. Re8 {[%emt 0:00:30]} f6 {[%emt 0:01:28]} 39. Ng1 {[%emt 0:00:28]} Kg6 {[%emt 0:00:22]} 40. Kf3 {[%emt 0:00:22]} h5 {[%emt 0:00:41]} 41. Ra8 {[%emt 0:00:52]} Rb3 {[%emt 0:00:18]} 42. Rd8 {[%emt 0:00:37]} Kf5 {[%emt 0:01:12]} 43. Kf2 {[%emt 0:00:34]} Kg4 {[%emt 0:01:56]} 44. Nf3 $2 {[%emt 0:00:35]} (44. Kg2 {was necessary.}) 44... Rb2 {[%emt 0:00:26]} 45. Ng1 {[%emt 0:00:19]} Ne4+ {[%emt 0:00:13]} 46. Kg2 {[%emt 0:00:43]} Nxg3 {[%emt 0:00:15]} 47. Rg8 {[%emt 0:00:32]} Nxe2 {[%emt 0:02:01]} 48. Rxg7+ {[%emt 0:00:09]} Kf5 {[%emt 0:00:24]} 49. Nxe2 {[%emt 0:01:06]} Rxe2+ {[%emt 0:00:03] Double Attack} 50. Kf3 {[%emt 0:00:10]} Rh2 {[%emt 0:00:48]} 51. e4+ {[%emt 0:00:20]} Ke6 {[%emt 0:00:11]} 52. Kg3 {[%emt 0:00:17]} Rh1 {[%emt 0:01:38]} 53. Rh7 {[%emt 0:00:07]} Rf1 {[%emt 0:00:22]} 54. Rxh5 {[%emt 0:00:37]} Rf4 {[%emt 0:00:03]} 55. Rh7 {[%emt 0:00:30]} Rxe4 {[%emt 0:00:04]} 56. h5 {[%emt 0:00:30]} Kf5 {[%emt 0:00:13]} 57. Rg7 {[%emt 0:00:33]} Re1 {[%emt 0:01:29]} 58. Kg2 {[%emt 0:00:22]} Ra1 {[%emt 0:01:39]} 59. h6 {[%emt 0:00:37]} Ra8 {[%emt 0:00:31]} 60. h7 {[%emt 0:00:17]} Rh8 {[%emt 0:00:05]} 61. Kf3 {[%emt 0:00:56]} e4+ {[%emt 0:02:17]} 62. Ke3 {[%emt 0:00:02]} Ke5 {[%emt 0:00:26]} 63. Re7+ {[%emt 0:00:48]} Kf5 {[%emt 0:00:03]} 64. Rg7 {[%emt 0:00:14]} Ke5 {[%emt 0:01:09]} 65. Re7+ $11 {[%emt 0:00:10]} Kf5 {[%emt 0:00:23] Kxe4+} 1/2-1/2